[Event "Fast Chess"]
[Site "ChessKid.com"]
[Date "2020.05.02"]
[Round "1"]
[White "Li, Tobias"]
[Black "Li, Patrick"]
[Result "1-0"]
[ECO "C50"]
[WhiteElo "1310"]
[BlackElo "1109"]
[PlyCount "59"]
[EventDate "2020.??.??"]
[TimeControl "300+50"]
[WhiteClock "0:04:32"]
[BlackClock "0:05:01"]

1. e4 {[%emt 0:00:50]} e5 {[%emt 0:00:46]} 2. Nf3 {[%emt 0:00:51]} Nc6 {
[%emt 0:00:46]} 3. Nc3 {[%emt 0:00:48]} Nf6 {[%emt 0:00:46]} 4. Bc4 {[%emt 0:
00:46]} Bc5 {[%emt 0:00:47]} 5. O-O {[%emt 0:00:47]} O-O {[%emt 0:00:48]} 6. h3
{[%emt 0:00:47]} d6 {[%emt 0:00:49]} 7. d3 {[%emt 0:00:47]} Re8 {[%emt 0:00:48]
} 8. Bg5 {[%emt 0:00:47]} Be6 {[%emt 0:00:49]} 9. Bd5 {[%emt 0:00:52]} Nd4 {
[%emt 0:00:51]} 10. Nxd4 {[%emt 0:00:48]} Bxd4 {[%emt 0:00:47]} 11. Re1 {
[%emt 0:00:49]} h6 {[%emt 0:00:56]} 12. Bh4 {[%emt 0:00:48]} Qd7 {[%emt 0:00:
53]} 13. Bxf6 {[%emt 0:00:49]} gxf6 {[%emt 0:00:48]} 14. Bxe6 {[%emt 0:00:49]}
Qxe6 {[%emt 0:00:49]} 15. Nd5 {[%emt 0:00:50]} c5 {[%emt 0:00:53]} 16. Nc7 {
[%emt 0:00:50]} Qc8 {[%emt 0:00:58]} 17. Nxe8 {[%emt 0:00:49]} Qxe8 {[%emt 0:
00:47]} 18. Qg4+ {[%emt 0:00:54]} Kf8 {[%emt 0:00:52]} 19. Qh4 {[%emt 0:00:50]}
Bxb2 {[%emt 0:00:58]} 20. Rab1 {[%emt 0:00:48]} Qb5 {[%emt 0:00:49]} 21. Qxh6+
{[%emt 0:00:49]} Ke7 {[%emt 0:00:48]} 22. Qd2 {[%emt 0:00:56]} Qc6 {[%emt 0:01:
03]} 23. Rxb2 {[%emt 0:00:49]} Qa4 {[%emt 0:00:50]} 24. Rxb7+ {[%emt 0:00:57]}
Kd8 {[%emt 0:00:50]} 25. Rb2 {[%emt 0:00:57]} Qd4 {[%emt 0:00:47]} 26. Rbb1 {
[%emt 0:00:51]} Qa4 {[%emt 0:01:10]} 27. Qc3 {[%emt 0:00:54]} Qxa2 {[%emt 0:00:
50]} 28. Qb2 {[%emt 0:00:50]} Qa5 {[%emt 0:00:53]} 29. Qb3 {[%emt 0:00:52]} Qc7
{[%emt 0:00:49]} 30. Qb7 {[%emt 0:00:48] OnlyHungryKiwi won by resignation} 1-0

[Event "Fast Chess"]
[Site "ChessKid.com"]
[Date "2020.05.02"]
[Round "1"]
[White "Georgiev, Maximilian"]
[Black "Halimi, Dorian"]
[Result "1-0"]
[ECO "C57"]
[WhiteElo "686"]
[BlackElo "1202"]
[PlyCount "79"]
[EventDate "2020.??.??"]
[TimeControl "300+50"]
[WhiteClock "0:05:29"]
[BlackClock "0:05:45"]

1. e4 {[%emt 0:00:47]} e5 {[%emt 0:00:47]} 2. Nf3 {[%emt 0:00:46]} Nc6 {
[%emt 0:00:48]} 3. Bc4 {[%emt 0:00:46]} Nf6 {[%emt 0:00:50]} 4. Ng5 {[%emt 0:
00:46]} d5 {[%emt 0:00:51]} 5. exd5 {[%emt 0:00:47]} Nxd5 {[%emt 0:00:48]} 6.
Qf3 $2 {[%emt 0:00:47]} Be6 {[%emt 0:00:55]} 7. Nxe6 {[%emt 0:00:49]} fxe6 {
[%emt 0:00:47]} 8. O-O {[%emt 0:00:48]} Qe7 {[%emt 0:00:52]} 9. d3 {[%emt 0:00:
49]} O-O-O {[%emt 0:00:48]} 10. Bb5 {[%emt 0:00:49]} Qd6 {[%emt 0:00:49]} 11.
Nc3 {[%emt 0:00:49]} Nxc3 {[%emt 0:00:48]} 12. bxc3 {[%emt 0:00:46]} a6 {
[%emt 0:00:48]} 13. Ba4 {[%emt 0:00:47]} Ne7 {[%emt 0:00:52]} 14. Rb1 {[%emt 0:
00:54]} b5 {[%emt 0:00:49]} 15. Bb3 {[%emt 0:00:48]} Nd5 {[%emt 0:00:49]} 16.
c4 {[%emt 0:00:52]} Nc3 {[%emt 0:00:49]} 17. Rb2 {[%emt 0:00:49]} bxc4 {
[%emt 0:00:48]} 18. Bxc4 {[%emt 0:00:48]} Be7 {[%emt 0:00:55]} 19. Qb7+ {
[%emt 0:00:49]} Kd7 {[%emt 0:00:49]} 20. Bd2 {[%emt 0:00:50]} Nb5 {[%emt 0:00:
54]} 21. Bxb5+ {[%emt 0:00:49]} axb5 {[%emt 0:00:46]} 22. Qxb5+ {[%emt 0:00:47]
} c6 {[%emt 0:00:47]} 23. Qb7+ {[%emt 0:00:48]} Ke8 {[%emt 0:00:48]} 24. Be3 {
[%emt 0:00:56]} Rf8 {[%emt 0:00:48]} 25. Rb3 {[%emt 0:00:54]} Rd7 {[%emt 0:00:
48]} 26. Qa6 {[%emt 0:00:50]} h6 {[%emt 0:00:52]} 27. Qc4 {[%emt 0:00:50]} Bg5
{[%emt 0:00:53]} 28. Bc5 {[%emt 0:00:49]} Qc7 {[%emt 0:00:51]} 29. Bxf8 {
[%emt 0:00:48]} Kxf8 {[%emt 0:00:49]} 30. Qxe6 {[%emt 0:00:47]} c5 {[%emt 0:00:
52]} 31. Re1 {[%emt 0:00:53]} Bf6 {[%emt 0:00:53]} 32. Qf5 {[%emt 0:00:55]} Qd8
{[%emt 0:00:49]} 33. Reb1 {[%emt 0:00:51]} c4 {[%emt 0:00:46]} 34. Rb8 {
[%emt 0:00:47]} Qxb8 {[%emt 0:00:48]} 35. Rxb8+ {[%emt 0:00:47]} Ke7 {[%emt 0:
00:47]} 36. Qe4 {[%emt 0:00:49]} cxd3 {[%emt 0:00:47]} 37. cxd3 {[%emt 0:00:47]
} Bg5 {[%emt 0:00:48]} 38. Qxe5+ {[%emt 0:00:48]} Kf7 {[%emt 0:00:48]} 39. Qe8+
{[%emt 0:00:50]} Kf6 {[%emt 0:00:48]} 40. Qxd7 {[%emt 0:00:46] TallSnazzyBall
won by resignation} 1-0

[Event "Fast Chess"]
[Site "ChessKid.com"]
[Date "2020.05.02"]
[Round "2"]
[White "Sasse, Gabriel"]
[Black "Georgiev, Maximilian"]
[Result "0-1"]
[ECO "C50"]
[WhiteElo "1307"]
[BlackElo "702"]
[Annotator "Doppelangriff"]
[PlyCount "32"]
[EventDate "2020.??.??"]
[TimeControl "300+50"]
[WhiteClock "0:05:48"]
[BlackClock "0:05:42"]

1. e4 {[%emt 0:00:47]} e5 {[%emt 0:00:46]} 2. Nf3 {[%emt 0:00:47]} Nc6 {
[%emt 0:00:46]} 3. Bc4 {[%emt 0:00:47]} h6 {[%emt 0:00:46]} 4. h3 {[%emt 0:00:
47]} Nf6 {[%emt 0:00:46]} 5. Nc3 {[%emt 0:00:46]} Bc5 {[%emt 0:00:49]} 6. O-O {
[%emt 0:00:46]} O-O {[%emt 0:00:47]} 7. a3 {[%emt 0:00:46]} a6 {[%emt 0:00:46]}
8. b4 {[%emt 0:00:46]} Ba7 {[%emt 0:00:48]} 9. Nd5 {[%emt 0:00:48]} Nxe4 {
[%emt 0:00:48]} 10. Re1 {[%emt 0:00:50]} Nf6 {[%emt 0:00:48]} 11. Nxe5 {
[%emt 0:00:47]} Nxe5 {[%emt 0:00:46]} 12. Rxe5 {[%emt 0:00:46]} Bd4 {[%emt 0:
00:48]} 13. Re1 {[%emt 0:00:49]} Bxa1 {[%emt 0:00:47]} 14. a4 {[%emt 0:00:52]}
Bd4 {[%emt 0:00:47]} 15. Nxf6+ {[%emt 0:00:50]} Qxf6 {[%emt 0:00:48]} 16. c3 {
[%emt 0:00:46]} Bxf2+ {[%emt 0:00:48] TallSnazzyBall won by resignation} 0-1

[Event "Fast Chess"]
[Site "ChessKid.com"]
[Date "2020.05.02"]
[Round "2"]
[White "Dai, Lana"]
[Black "Li, Tobias"]
[Result "0-1"]
[ECO "C47"]
[WhiteElo "1299"]
[BlackElo "1318"]
[Annotator "Bauernendspiel"]
[PlyCount "114"]
[EventDate "2020.??.??"]
[TimeControl "300+50"]
[WhiteClock "0:07:20"]
[BlackClock "0:06:00"]

1. e4 {[%emt 0:00:49]} e5 {[%emt 0:00:46]} 2. Nf3 {[%emt 0:00:47]} Nc6 {
[%emt 0:00:46]} 3. Nc3 {[%emt 0:00:47]} Nf6 {[%emt 0:00:46]} 4. a3 {[%emt 0:00:
47]} Bc5 {[%emt 0:00:46]} 5. b4 {[%emt 0:00:48]} Bb6 {[%emt 0:00:49]} 6. b5 {
[%emt 0:00:47]} Nd4 {[%emt 0:00:49]} 7. Nxd4 {[%emt 0:00:46]} Bxd4 {[%emt 0:00:
49]} 8. Ra2 {[%emt 0:00:48]} Bxc3 {[%emt 0:00:48]} 9. dxc3 {[%emt 0:00:47]} d6
{[%emt 0:00:47]} 10. h3 {[%emt 0:00:48]} O-O {[%emt 0:00:47]} 11. Bc4 {[%emt 0:
00:49]} a6 {[%emt 0:00:52]} 12. bxa6 {[%emt 0:00:48]} bxa6 {[%emt 0:00:49]} 13.
O-O {[%emt 0:00:48]} Qe8 {[%emt 0:00:52]} 14. Bg5 {[%emt 0:00:54]} Be6 {
[%emt 0:00:49]} 15. Qd3 {[%emt 0:01:03]} Bxc4 {[%emt 0:00:52]} 16. Qxc4 {
[%emt 0:00:50]} Qe6 {[%emt 0:00:46]} 17. Qxe6 {[%emt 0:00:52]} fxe6 {[%emt 0:
00:49]} 18. Bxf6 {[%emt 0:00:46]} Rxf6 {[%emt 0:00:48]} 19. c4 {[%emt 0:00:51]}
c6 {[%emt 0:00:49]} 20. a4 {[%emt 0:00:48]} Rb8 {[%emt 0:00:49]} 21. Raa1 {
[%emt 0:01:03]} d5 {[%emt 0:00:48]} 22. exd5 {[%emt 0:00:48]} exd5 {[%emt 0:00:
46]} 23. cxd5 {[%emt 0:00:47]} cxd5 {[%emt 0:00:46]} 24. Rfe1 {[%emt 0:00:51]}
Re6 {[%emt 0:00:47]} 25. Red1 {[%emt 0:00:49]} d4 {[%emt 0:00:48]} 26. Rab1 {
[%emt 0:00:52]} Ree8 {[%emt 0:00:51]} 27. Rxb8 {[%emt 0:00:49]} Rxb8 {[%emt 0:
00:49]} 28. f3 {[%emt 0:00:52]} Re8 {[%emt 0:00:49]} 29. Re1 {[%emt 0:00:59]}
a5 {[%emt 0:00:47]} 30. f4 {[%emt 0:00:47]} Kf7 {[%emt 0:00:56]} 31. Rxe5 {
[%emt 0:00:49]} Rxe5 {[%emt 0:00:47]} 32. fxe5 {[%emt 0:00:46]} Ke6 {[%emt 0:
00:46]} 33. Kf2 {[%emt 0:00:48]} Kxe5 {[%emt 0:00:46]} 34. Kf3 {[%emt 0:00:50]}
g5 {[%emt 0:00:48]} 35. g4 {[%emt 0:00:53]} (35. Kg4 Ke4 (35... Kf6 36. Kh5 Kf5
37. g3) 36. Kxg5 Ke3 37. Kf5 Kd2 38. Ke5 Kxc2 39. Kxd4) 35... Kd5 {[%emt 0:00:
47]} 36. Kg3 {[%emt 0:00:51]} Kc4 {[%emt 0:00:46]} 37. h4 {[%emt 0:00:46]} Kc3
{[%emt 0:00:46]} 38. hxg5 {[%emt 0:00:47]} Kxc2 {[%emt 0:00:46]} 39. Kf4 {
[%emt 0:00:47]} d3 {[%emt 0:00:46]} 40. Ke3 {[%emt 0:00:48]} d2 {[%emt 0:00:47]
} 41. g6 {[%emt 0:00:51]} hxg6 {[%emt 0:00:47]} 42. Kf4 {[%emt 0:00:47]} d1=Q {
[%emt 0:00:48]} 43. Kg5 {[%emt 0:00:47]} Qd4 {[%emt 0:00:48]} 44. Kxg6 {
[%emt 0:00:54]} Qxg4+ {[%emt 0:00:46]} 45. Kf6 {[%emt 0:00:47]} Qxa4 {[%emt 0:
00:46]} 46. Ke7 {[%emt 0:00:47]} Qe4+ {[%emt 0:00:47]} 47. Kd7 {[%emt 0:00:47]}
Qg6 {[%emt 0:00:46]} 48. Ke7 {[%emt 0:00:48]} a4 {[%emt 0:00:47]} 49. Kd7 {
[%emt 0:00:46]} Qf6 {[%emt 0:00:46]} 50. Kc7 {[%emt 0:00:47]} Qe6 {[%emt 0:00:
46]} 51. Kb7 {[%emt 0:00:47]} Qd6 {[%emt 0:00:46]} 52. Ka7 {[%emt 0:00:46]} Qc6
{[%emt 0:00:46]} 53. Kb8 {[%emt 0:00:47]} Qd7 {[%emt 0:00:46]} 54. Ka8 {
[%emt 0:00:47]} a3 {[%emt 0:00:46]} 55. Kb8 {[%emt 0:00:46]} a2 {[%emt 0:00:46]
} 56. Ka8 {[%emt 0:00:46]} a1=Q+ {[%emt 0:00:47]} 57. Kb8 {[%emt 0:00:46]}
Qaa7# {[%emt 0:00:46] OnlyHungryKiwi won by checkmate} 0-1

[Event "Fast Chess"]
[Site "ChessKid.com"]
[Date "2020.05.02"]
[Round "2"]
[White "Halimi, Dorian"]
[Black "Rosenkranz, Benjamin"]
[Result "1-0"]
[ECO "B00"]
[WhiteElo "1209"]
[BlackElo "1157"]
[PlyCount "79"]
[EventDate "2020.??.??"]
[TimeControl "300+50"]
[WhiteClock "0:03:26"]
[BlackClock "0:05:26"]

1. e4 {[%emt 0:00:48]} e6 {[%emt 0:00:47]} 2. Nc3 {[%emt 0:00:47]} Nc6 {
[%emt 0:00:47]} 3. d4 {[%emt 0:00:47]} Nb4 {[%emt 0:00:51]} 4. d5 {[%emt 0:00:
48]} exd5 {[%emt 0:00:49]} 5. exd5 {[%emt 0:00:46]} Qe7+ {[%emt 0:00:48]} 6.
Be2 {[%emt 0:00:48]} Nf6 {[%emt 0:00:48]} 7. Nf3 {[%emt 0:00:48]} Qd6 {[%emt 0:
00:54]} 8. Bc4 {[%emt 0:00:55]} Qe7+ {[%emt 0:00:54]} 9. Be3 {[%emt 0:00:51]}
d6 {[%emt 0:00:50]} 10. O-O {[%emt 0:00:49]} Nh5 {[%emt 0:00:59]} 11. Bg5 {
[%emt 0:00:47]} Qd7 {[%emt 0:00:57]} 12. h3 {[%emt 0:00:48]} Qf5 {[%emt 0:00:
58]} 13. h4 {[%emt 0:00:55]} Nxc2 {[%emt 0:00:53]} 14. Rc1 {[%emt 0:00:53]} Nb4
{[%emt 0:00:47]} 15. Qd2 {[%emt 0:00:47]} Qg4 {[%emt 0:01:02]} 16. g3 {[%emt 0:
00:52]} Qxc4 {[%emt 0:00:49]} 17. b3 {[%emt 0:00:54]} Qa6 {[%emt 0:00:59]} 18.
Rfe1+ {[%emt 0:00:48]} Kd7 {[%emt 0:00:57]} 19. Nd4 {[%emt 0:00:59]} c5 {
[%emt 0:00:59]} 20. Ndb5 {[%emt 0:00:48]} Qxb5 {[%emt 0:00:50]} 21. Nxb5 {
[%emt 0:00:47]} a6 {[%emt 0:01:02]} 22. Nd4 {[%emt 0:00:53]} cxd4 {[%emt 0:00:
48]} 23. Qxb4 {[%emt 0:00:47]} d3 {[%emt 0:00:52]} 24. Qg4+ {[%emt 0:00:53]} f5
{[%emt 0:00:58]} 25. Qxh5 {[%emt 0:00:51]} d2 {[%emt 0:00:51]} 26. Bxd2 {
[%emt 0:00:48]} b6 {[%emt 0:00:50]} 27. g4 {[%emt 0:00:49]} fxg4 {[%emt 0:00:
47]} 28. Qxg4+ {[%emt 0:00:47]} Kd8 {[%emt 0:00:49]} 29. Bg5+ {[%emt 0:00:47]}
Be7 {[%emt 0:00:50]} 30. Bxe7+ {[%emt 0:00:48]} Ke8 {[%emt 0:00:53]} 31. Qxg7 {
[%emt 0:00:49]} Kd7 {[%emt 0:00:50]} 32. Qxh8 {[%emt 0:00:48]} Bb7 {[%emt 0:00:
50]} 33. Qxh7 {[%emt 0:00:48]} Ke8 {[%emt 0:00:49]} 34. Qg6+ {[%emt 0:00:51]}
Kd7 {[%emt 0:00:48]} 35. h5 {[%emt 0:00:51]} Bxd5 {[%emt 0:00:51]} 36. h6 {
[%emt 0:00:49]} Rh8 {[%emt 0:00:54]} 37. h7 {[%emt 0:00:47]} Be6 {[%emt 0:01:
03]} 38. Bf6 {[%emt 0:00:52]} Rxh7 {[%emt 0:00:51]} 39. Qxh7+ {[%emt 0:00:47]}
Bf7 {[%emt 0:00:50]} 40. Qxf7# {[%emt 0:00:47] FullMagentaEclipse won by
checkmate} 1-0

[Event "Fast Chess"]
[Site "ChessKid.com"]
[Date "2020.05.02"]
[Round "3"]
[White "Li, Tobias"]
[Black "Gerogiev, Maximilian"]
[Result "1-0"]
[ECO "C50"]
[WhiteElo "1318"]
[BlackElo "702"]
[Annotator "Ausschalten Verteidiger"]
[PlyCount "49"]
[EventDate "2020.??.??"]
[TimeControl "300+50"]
[WhiteClock "0:05:49"]
[BlackClock "0:05:03"]

1. e4 {[%emt 0:00:49]} e5 {[%emt 0:00:46]} 2. Nf3 {[%emt 0:00:47]} Nc6 {
[%emt 0:00:46]} 3. Nc3 {[%emt 0:00:47]} Nf6 {[%emt 0:00:47]} 4. Bc4 {[%emt 0:
00:45]} h6 {[%emt 0:00:47]} 5. O-O {[%emt 0:00:48]} Bc5 {[%emt 0:00:46]} 6. d3
{[%emt 0:00:51]} O-O {[%emt 0:00:47]} 7. h3 {[%emt 0:00:46]} a6 {[%emt 0:00:47]
} 8. a3 {[%emt 0:00:47]} b5 {[%emt 0:00:46]} 9. Bb3 {[%emt 0:00:47]} Bb7 {
[%emt 0:00:47]} 10. Nd5 {[%emt 0:00:47]} Nxd5 {[%emt 0:00:48]} 11. Bxd5 {
[%emt 0:00:46]} a5 {[%emt 0:00:51]} 12. Bd2 {[%emt 0:00:53]} d6 {[%emt 0:00:50]
} 13. b4 {[%emt 0:00:48]} Bb6 {[%emt 0:00:49]} 14. bxa5 {[%emt 0:00:48]} Bxa5 {
[%emt 0:00:46]} 15. Bxa5 {[%emt 0:00:48]} Rxa5 {[%emt 0:00:46]} 16. Qd2 {
[%emt 0:00:56]} Qd7 $4 {[%emt 0:00:52]} 17. Bxc6 $1 {[%emt 0:00:48]} Bxc6 {
[%emt 0:00:48]} 18. Qxa5 {[%emt 0:00:49]} Ra8 {[%emt 0:00:45]} 19. Qd2 {
[%emt 0:00:52]} Qe6 {[%emt 0:00:50]} 20. Qb4 {[%emt 0:01:11]} Bd7 {[%emt 0:00:
54]} 21. Qd2 {[%emt 0:00:59]} Qg6 {[%emt 0:00:49]} 22. Qe3 {[%emt 0:00:49]}
Bxh3 {[%emt 0:00:49]} 23. Nh4 {[%emt 0:00:49]} Qg4 {[%emt 0:00:49]} 24. Qxh3 {
[%emt 0:00:50]} Qg6 {[%emt 0:00:48]} 25. Nxg6 {[%emt 0:00:49] OnlyHungryKiwi
won by resignation} 1-0

[Event "Fast Chess"]
[Site "ChessKid.com"]
[Date "2020.05.02"]
[Round "3"]
[White "Halimi, Dorian"]
[Black "Dai, Lana"]
[Result "0-1"]
[ECO "C44"]
[WhiteElo "1203"]
[BlackElo "1305"]
[PlyCount "166"]
[EventDate "2020.??.??"]
[TimeControl "300+50"]
[WhiteClock "0:04:26"]
[BlackClock "0:07:51"]

1. e4 {[%emt 0:00:47]} e5 {[%emt 0:00:47]} 2. Nc3 {[%emt 0:00:47]} Nc6 {
[%emt 0:00:46]} 3. Nf3 {[%emt 0:00:48]} Nf6 {[%emt 0:00:46]} 4. d3 {[%emt 0:00:
47]} h6 {[%emt 0:00:48]} 5. Be2 {[%emt 0:00:49]} Bc5 {[%emt 0:00:48]} 6. O-O {
[%emt 0:00:48]} O-O {[%emt 0:00:50]} 7. h3 {[%emt 0:00:46]} d6 {[%emt 0:00:48]}
8. a3 {[%emt 0:00:50]} a6 {[%emt 0:00:47]} 9. b4 {[%emt 0:00:47]} Bd4 {[%emt 0:
00:53]} 10. Nxd4 {[%emt 0:00:48]} Nxd4 {[%emt 0:00:46]} 11. Be3 {[%emt 0:00:50]
} Nxe2+ {[%emt 0:00:48]} 12. Nxe2 {[%emt 0:00:47]} d5 {[%emt 0:01:04]} 13. exd5
{[%emt 0:00:47]} Nxd5 {[%emt 0:00:46]} 14. Bc5 {[%emt 0:00:49]} Re8 {[%emt 0:
00:57]} 15. d4 {[%emt 0:00:50]} exd4 {[%emt 0:00:51]} 16. Bxd4 {[%emt 0:00:51]}
Nb6 {[%emt 0:01:16]} 17. Bxb6 {[%emt 0:00:49]} cxb6 {[%emt 0:00:54]} 18. Qxd8 {
[%emt 0:00:50]} Rxd8 {[%emt 0:00:47]} 19. Rad1 {[%emt 0:00:50]} Rxd1 {[%emt 0:
00:48]} 20. Rxd1 {[%emt 0:00:46]} Bf5 {[%emt 0:00:49]} 21. Rc1 {[%emt 0:00:51]}
Re8 {[%emt 0:00:50]} 22. Nd4 {[%emt 0:00:48]} Bg6 {[%emt 0:01:00]} 23. c4 {
[%emt 0:00:51]} Re4 {[%emt 0:00:51]} 24. Rd1 {[%emt 0:00:49]} Re7 {[%emt 0:01:
06]} 25. c5 {[%emt 0:00:48]} bxc5 {[%emt 0:00:47]} 26. bxc5 {[%emt 0:00:46]}
Rd7 {[%emt 0:00:55]} 27. Rd3 {[%emt 0:00:54]} Bxd3 {[%emt 0:00:47]} 28. c6 {
[%emt 0:00:49]} bxc6 {[%emt 0:00:47]} 29. Nxc6 {[%emt 0:00:46]} Rc7 {[%emt 0:
00:59]} 30. Na5 {[%emt 0:00:50]} Bb1 {[%emt 0:00:50]} 31. Nb3 {[%emt 0:00:48]}
Rb7 {[%emt 0:00:50]} 32. Nc5 {[%emt 0:00:48]} Rb5 {[%emt 0:00:50]} 33. Nxa6 {
[%emt 0:00:47]} Ra5 {[%emt 0:00:48]} 34. Nb4 {[%emt 0:00:49]} Rxa3 {[%emt 0:00:
48]} 35. Kh2 {[%emt 0:00:46]} Rb3 {[%emt 0:00:51]} 36. Nd5 {[%emt 0:00:47]} Be4
{[%emt 0:00:48]} 37. Ne3 {[%emt 0:00:49]} Rb2 {[%emt 0:00:50]} 38. f3 {[%emt 0:
00:50]} Rb3 {[%emt 0:00:53]} 39. Ng4 {[%emt 0:00:50]} Bc2 {[%emt 0:00:51]} 40.
Kg3 {[%emt 0:00:48]} h5 {[%emt 0:00:51]} 41. Ne5 {[%emt 0:00:47]} f6 {[%emt 0:
00:49]} 42. Nd7 {[%emt 0:00:47]} f5 {[%emt 0:00:49]} 43. Kf4 {[%emt 0:00:46]}
Rb5 {[%emt 0:00:56]} 44. Kg5 {[%emt 0:00:48]} Rb7 {[%emt 0:00:54]} 45. Ne5 {
[%emt 0:00:49]} Re7 {[%emt 0:00:55]} 46. Nc4 {[%emt 0:00:49]} Bb3 {[%emt 0:00:
59]} 47. Nd6 {[%emt 0:00:51]} Bc2 {[%emt 0:00:49]} 48. Kxh5 {[%emt 0:00:47]}
Re2 {[%emt 0:00:52]} 49. g3 {[%emt 0:00:48]} Rh2 {[%emt 0:00:49]} 50. h4 {
[%emt 0:00:47]} Rg2 {[%emt 0:00:47]} 51. g4 {[%emt 0:00:48]} fxg4 {[%emt 0:00:
46]} 52. fxg4 {[%emt 0:00:46]} Rd2 {[%emt 0:01:01]} 53. Nc4 {[%emt 0:00:51]}
Rd5+ {[%emt 0:00:49]} 54. g5 {[%emt 0:00:48]} Bd3 {[%emt 0:00:54]} 55. Ne3 {
[%emt 0:00:48]} Re5 {[%emt 0:00:51]} 56. Ng4 {[%emt 0:00:47]} Rf5 {[%emt 0:00:
48]} 57. Nh2 {[%emt 0:00:50]} Be2+ {[%emt 0:00:47]} 58. Ng4 {[%emt 0:00:48]}
Bxg4+ {[%emt 0:00:47]} 59. Kxg4 {[%emt 0:00:46]} Ra5 {[%emt 0:00:48]} 60. h5 {
[%emt 0:00:47]} Ra4+ {[%emt 0:00:50]} 61. Kf5 {[%emt 0:00:47]} Ra5+ {[%emt 0:
00:47]} 62. Kg6 {[%emt 0:00:49]} Ra6+ {[%emt 0:00:50]} 63. Kf5 {[%emt 0:00:48]}
Kh7 {[%emt 0:00:57]} 64. g6+ {[%emt 0:00:47]} Kh6 {[%emt 0:00:51]} 65. Kg4 {
[%emt 0:00:49]} Ra4+ {[%emt 0:00:51]} 66. Kf5 {[%emt 0:00:46]} Ra5+ {[%emt 0:
00:47]} 67. Ke6 {[%emt 0:00:49]} Rxh5 {[%emt 0:00:48]} 68. Kf7 {[%emt 0:00:47]}
Rf5+ {[%emt 0:00:49]} 69. Ke6 {[%emt 0:00:49]} Kxg6 {[%emt 0:00:48]} 70. Ke7 {
[%emt 0:00:47]} Ra5 {[%emt 0:00:49]} 71. Kd6 {[%emt 0:00:48]} Kf5 {[%emt 0:00:
51]} 72. Kc6 {[%emt 0:00:46]} g5 {[%emt 0:00:48]} 73. Kb6 {[%emt 0:00:47]} Re5
{[%emt 0:00:47]} 74. Kc6 {[%emt 0:00:48]} Kf4 {[%emt 0:00:48]} 75. Kd6 {
[%emt 0:00:46]} g4 {[%emt 0:00:47]} 76. Kc6 {[%emt 0:00:48]} g3 {[%emt 0:00:46]
} 77. Kd6 {[%emt 0:00:46]} g2 {[%emt 0:00:46]} 78. Kc6 {[%emt 0:00:47]} g1=R {
[%emt 0:00:49]} 79. Kd6 {[%emt 0:00:48]} Rg6+ {[%emt 0:00:47]} 80. Kd7 {
[%emt 0:00:47]} Ra5 {[%emt 0:00:48]} 81. Kc7 {[%emt 0:00:47]} Ra7+ {[%emt 0:00:
47]} 82. Kb8 {[%emt 0:00:47]} Rh7 {[%emt 0:00:47]} 83. Kc8 {[%emt 0:00:47]}
Rg8# {[%emt 0:00:46] TopBrownCave won by checkmate} 0-1

[Event "Fast Chess"]
[Site "ChessKid.com"]
[Date "2020.05.02"]
[Round "1"]
[White "Sasse, Gabriel"]
[Black "Horvath, Alexander"]
[Result "0-1"]
[ECO "C57"]
[WhiteElo "1306"]
[BlackElo "1328"]
[Annotator "Doppelangriff"]
[PlyCount "22"]
[EventDate "2020.??.??"]
[TimeControl "300+50"]
[WhiteClock "0:04:59"]
[BlackClock "0:05:18"]

1. e4 {[%emt 0:00:47]} e5 {[%emt 0:00:47]} 2. Nf3 {[%emt 0:00:46]} Nf6 {
[%emt 0:00:47]} 3. Bc4 {[%emt 0:00:46]} Nc6 {[%emt 0:00:57]} 4. Ng5 {[%emt 0:
00:47]} d5 {[%emt 0:00:49]} 5. exd5 {[%emt 0:00:47]} Nxd5 {[%emt 0:00:47]} 6.
Nc3 {[%emt 0:00:46]} Nxc3 {[%emt 0:00:47]} 7. bxc3 {[%emt 0:00:47]} Qxg5 {
[%emt 0:00:47]} 8. d4 {[%emt 0:00:47]} Qxg2 {[%emt 0:00:50]} 9. Rf1 {[%emt 0:
01:00]} exd4 {[%emt 0:00:47]} 10. Qh5 {[%emt 0:00:48]} Qe4+ {[%emt 0:00:59]}
11. Kd1 {[%emt 0:00:52]} Bg4+ {[%emt 0:00:55] KeenOrangeTeeth won by
resignation} 0-1

[Event "Fast Chess"]
[Site "ChessKid.com"]
[Date "2020.05.02"]
[Round "1"]
[White "Li, Tobias"]
[Black "Dai, Lana"]
[Result "1-0"]
[ECO "C50"]
[WhiteElo "1326"]
[BlackElo "1298"]
[Annotator "Fesselung"]
[PlyCount "83"]
[EventDate "2020.??.??"]
[TimeControl "300+50"]
[WhiteClock "0:03:46"]
[BlackClock "0:04:59"]

1. e4 {[%emt 0:00:46]} e5 {[%emt 0:00:47]} 2. Nf3 {[%emt 0:00:46]} Nc6 {
[%emt 0:00:47]} 3. Bc4 {[%emt 0:00:48]} h6 {[%emt 0:00:49]} 4. O-O {[%emt 0:00:
48]} Nf6 {[%emt 0:00:47]} 5. c3 {[%emt 0:00:47]} a6 {[%emt 0:00:51]} 6. d4 {
[%emt 0:00:47]} exd4 {[%emt 0:00:47]} 7. Nxd4 {[%emt 0:00:46]} Nxd4 {[%emt 0:
00:47]} 8. Qxd4 {[%emt 0:00:46]} Be7 {[%emt 0:01:00]} 9. e5 {[%emt 0:00:55]} c5
{[%emt 0:01:00]} 10. Qf4 $3 {[%emt 0:00:54]} O-O {[%emt 0:00:54]} 11. exf6 {
[%emt 0:00:48]} Bxf6 {[%emt 0:00:47]} 12. Qg3 {[%emt 0:00:51]} Bg5 {[%emt 0:01:
05]} 13. Bxg5 {[%emt 0:00:48]} hxg5 {[%emt 0:00:47]} 14. Nd2 {[%emt 0:00:48]}
b5 {[%emt 0:00:49]} 15. Bb3 {[%emt 0:00:50]} c4 {[%emt 0:00:48]} 16. Bc2 {
[%emt 0:00:50]} d5 {[%emt 0:00:48]} 17. Rfe1 {[%emt 0:00:49]} d4 {[%emt 0:01:
10]} 18. cxd4 {[%emt 0:00:49]} Qxd4 {[%emt 0:00:47]} 19. Nf3 {[%emt 0:00:58]}
Qd8 {[%emt 0:00:55]} 20. Qxg5 {[%emt 0:00:53]} Qxg5 {[%emt 0:00:47]} 21. Nxg5 {
[%emt 0:00:48]} f6 {[%emt 0:00:55]} 22. Nf3 {[%emt 0:01:03]} Bg4 {[%emt 0:00:
49]} 23. Re3 {[%emt 0:00:49]} Rae8 {[%emt 0:00:53]} 24. Rae1 {[%emt 0:00:52]}
Rxe3 {[%emt 0:01:02]} 25. Rxe3 {[%emt 0:00:49]} f5 {[%emt 0:00:52]} 26. h3 {
[%emt 0:00:50]} f4 {[%emt 0:00:48]} 27. Rc3 {[%emt 0:00:59]} Bxf3 {[%emt 0:01:
03]} 28. Rxf3 {[%emt 0:00:48]} b4 {[%emt 0:00:50]} 29. Be4 {[%emt 0:00:58]} a5
{[%emt 0:00:55]} 30. Bd5+ {[%emt 0:00:47]} Kh8 {[%emt 0:00:51]} 31. Bxc4 {
[%emt 0:00:46]} g5 {[%emt 0:00:53]} 32. a3 {[%emt 0:00:48]} bxa3 {[%emt 0:00:
47]} 33. bxa3 {[%emt 0:00:47]} Rc8 {[%emt 0:00:53]} 34. Bb5 {[%emt 0:00:50]}
Rc1+ {[%emt 0:00:48]} 35. Kh2 {[%emt 0:00:46]} Rc5 {[%emt 0:00:52]} 36. a4 {
[%emt 0:00:49]} Rc7 {[%emt 0:00:49]} 37. h4 {[%emt 0:00:50]} Rh7 {[%emt 0:00:
50]} 38. g3 {[%emt 0:00:51]} fxg3+ {[%emt 0:00:50]} 39. fxg3 {[%emt 0:00:50]}
gxh4 {[%emt 0:00:53]} 40. Bd3 {[%emt 0:00:56]} hxg3+ {[%emt 0:00:52]} 41. Kxg3
{[%emt 0:00:49]} Rg7+ {[%emt 0:00:50]} 42. Kf2 {[%emt 0:00:52] OnlyHungryKiwi
won on time} 1-0